bitfinex/quotes_BTCUSD_20240911
["timestamp","ask_amount","ask_price","bid_price","bid_amount"]
[1726019307524,0.177231,57068.0,57052.0,0.0755]
[1726019307750,0.175233,57067.0,57053.0,0.17594018]
[1726019307987,0.002,57070.0,57053.0,0.17594018]
[1726019308206,0.002,57073.0,57053.0,0.63461698]
[1726019308441,0.002,57073.0,57063.0,0.001]
[1726019308868,0.002,57073.0,57059.0,0.42143278]
[1726019309139,0.0728,57066.0,57053.0,0.03724402]
[1726019309368,0.0708,57066.0,57054.0,0.17594018]
[1726019309609,0.004,57067.0,57064.0,0.42143278]
[1726019309820,0.004,57067.0,57065.0,0.17594018]
[1726019310284,0.004,57067.0,57052.0,0.42143278]
[1726019310514,0.002,57062.0,57053.0,0.27594018]
[1726019310757,0.177236,57066.0,57053.0,0.27594018]
[1726019310974,0.177236,57066.0,57053.0,0.3035342]
[1726019310975,0.000818,57066.0,57053.0,0.3035342]
[1726019311189,0.000818,57066.0,57058.0,0.42143278]
[1726019311405,0.000818,57066.0,57064.0,0.42143278]
[1726019311624,0.000818,57066.0,57065.0,0.17594018]
[1726019312110,0.000818,57066.0,57065.0,0.29894018]
[1726019312363,0.0048237,57085.0,57073.0,0.03]
[1726019312588,0.52782518,57080.0,57079.0,0.42143278]
[1726019312825,0.0048237,57085.0,57079.0,0.42143278]
[1726019312826,0.0048237,57085.0,57079.0,0.27594018]
[1726019313061,0.0048237,57085.0,57073.0,0.52143278]
[1726019313305,0.0048237,57085.0,57079.0,0.42143278]
[1726019313522,0.0048237,57085.0,57080.0,0.29894018]
[1726019313752,0.0088237,57085.0,57080.0,0.29894018]
[1726019314418,0.0088237,57085.0,57084.0,0.03]
[1726019314632,0.0088237,57085.0,57084.0,0.22894018]
[1726019314873,0.0088237,57085.0,57084.0,0.3836342]
[1726019315623,0.0048237,57085.0,57084.0,0.3836342]
[1726019315624,0.0048237,57085.0,57084.0,0.3536342]
[1726019315837,0.0048237,57085.0,57054.0,0.4708]
[1726019315838,0.0138237,57085.0,57073.0,0.42143278]
[1726019316073,0.0138237,57085.0,57073.0,0.17594018]
[1726019316288,0.0048237,57085.0,57073.0,0.17594018]
[1726019316500,0.0048237,57085.0,57072.0,0.42143278]
[1726019316501,0.0048237,57085.0,57078.0,0.42143278]
[1726019316758,0.52782518,57080.0,57072.0,0.42143278]
[1726019316984,0.0058237,57085.0,57066.0,0.42143278]
[1726019316985,0.002,57079.0,57066.0,0.42143278]
[1726019317200,0.2277,57084.0,57067.0,0.17594018]
[1726019317416,0.175187,57082.0,57067.0,0.17594018]
[1726019317642,0.2277,57084.0,57067.0,0.17594018]
[1726019317855,0.1957,57084.0,57072.0,0.42143278]
[1726019318097,0.1957,57084.0,57073.0,0.17594018]
[1726019318320,0.0949,57084.0,57078.0,0.42143278]
[1726019318523,0.0949,57084.0,57079.0,0.17594018]
[1726019319211,0.1019,57084.0,57079.0,0.17594018]
[1726019319424,0.277081,57084.0,57074.0,0.1]
[1726019319637,0.0949,57084.0,57075.0,0.17594018]
[1726019319850,0.0949,57084.0,57076.0,0.1]
[1726019320068,0.0949,57084.0,57077.0,0.17594018]
[1726019320294,0.0969,57084.0,57077.0,0.17594018]
[1726019320985,0.0949,57084.0,57079.0,0.001]
[1726019321425,0.0949,57084.0,57079.0,0.17694018]
[1726019321630,0.0048237,57085.0,57080.0,0.17594018]
[1726019322495,0.0048237,57085.0,57083.0,0.42143278]
[1726019322717,0.001,57084.0,57083.0,0.59737296]
[1726019322941,0.001,57084.0,57079.0,0.004]
[1726019323182,0.175191,57081.0,57079.0,0.004]
[1726019323409,0.621977,57080.0,57079.0,0.004]
[1726019323614,0.0944,57080.0,57079.0,0.004]
[1726019323828,0.09449156,57080.0,57079.0,0.004]
[1726019324055,0.002,57079.0,57077.0,0.001636]
[1726019324519,0.525595,57078.0,57077.0,0.001636]
[1726019324752,1.19233218,57078.0,57077.0,0.001636]
[1726019324998,0.002,57063.0,57049.0,0.0786]
[1726019325239,0.002,57063.0,57042.0,0.0786]
[1726019325240,0.0944,57062.0,57042.0,0.0786]
[1726019325464,0.002,57052.0,57043.0,0.17594018]
[1726019325678,0.03,57058.0,57043.0,0.17594018]
[1726019325679,0.002,57056.0,57043.0,0.17594018]
[1726019325908,0.002,57056.0,57034.0,0.50003278]
[1726019325909,0.35054,57055.0,57034.0,0.50003278]
[1726019326167,0.175314,57041.0,57023.0,0.0786]
[1726019326379,0.002,57042.0,57022.0,0.42143278]
[1726019326630,0.523371,57050.0,57028.0,0.42143278]
[1726019326631,0.03,57048.0,57028.0,0.42143278]
[1726019327266,0.03,57046.0,57028.0,0.42143278]
[1726019327486,0.002,57045.0,57028.0,0.42143278]
[1726019327716,0.03,57043.0,57028.0,0.42143278]
[1726019327933,0.03,57043.0,57029.0,0.1]
[1726019328193,0.03,57043.0,57027.0,0.00071797]
[1726019328449,0.03,57045.0,57028.0,0.42143278]
[1726019328677,0.03,57047.0,57039.0,0.002636]
[1726019329127,0.1728,57050.0,57040.0,0.17594018]
[1726019329368,0.03,57049.0,57041.0,0.11785762]
[1726019329817,0.03,57049.0,57042.0,0.023]
[1726019330502,0.2028,57050.0,57042.0,0.023]
[1726019330746,0.1728,57050.0,57042.0,0.05335762]
[1726019331010,0.175297,57046.0,57041.0,0.1]
[1726019331222,0.002,57049.0,57039.0,0.004636]
[1726019331427,0.002,57048.0,57039.0,0.001636]
[1726019331659,0.1778,57050.0,57039.0,0.0117996]
[1726019332123,0.1728,57050.0,57039.0,0.0117996]
[1726019332376,0.002,57049.0,57039.0,0.0117996]
[1726019332598,0.005,57049.0,57039.0,0.0117996]
[1726019332813,0.005,57049.0,57040.0,0.59737296]
[1726019333031,0.0944,57050.0,57040.0,0.59737296]
[1726019333283,0.0944,57050.0,57041.0,0.1]
[1726019333284,0.005,57050.0,57041.0,0.1]
[1726019333522,0.005,57050.0,57046.0,0.42143278]
[1726019333731,0.005,57050.0,57047.0,0.34408346]
[1726019333976,0.03,57071.0,57047.0,0.34408346]
[1726019333977,0.002,57074.0,57058.0,0.03]
[1726019334198,0.62222518,57077.0,57066.0,0.42143278]
[1726019334408,0.62222518,57077.0,57066.0,0.69737296]
[1726019334616,0.0944,57077.0,57066.0,0.69737296]
[1726019334853,0.0944,57077.0,57066.0,0.72037296]
[1726019336642,0.00109156,57067.0,57066.0,0.72437296]
[1726019337541,0.00109156,57067.0,57066.0,0.004]
[1726019337756,0.00109156,57067.0,57053.0,0.42143278]
[1726019337757,9.156e-05,57067.0,57053.0,0.42143278]
[1726019337986,9.156e-05,57067.0,57054.0,0.17594018]
[1726019338200,9.156e-05,57067.0,57066.0,0.003]
[1726019338485,9.156e-05,57067.0,57066.0,0.17894018]
[1726019338722,9.156e-05,57067.0,57066.0,0.17594018]
[1726019339181,9.156e-05,57067.0,57066.0,0.1]
[1726019339437,9.156e-05,57067.0,57066.0,0.27594018]
[1726019340361,9.156e-05,57067.0,57066.0,0.29894018]
[1726019340796,9.156e-05,57067.0,57066.0,0.44957748]
[1726019341295,0.00109156,57067.0,57066.0,0.45857748]
[1726019341531,0.00109156,57067.0,57066.0,0.55717748]
[1726019341765,9.156e-05,57067.0,57066.0,0.54817748]
[1726019341975,9.156e-05,57067.0,57066.0,0.57817748]
[1726019342184,0.000818,57079.0,57073.0,0.03]
[1726019342427,0.000818,57079.0,57066.0,0.55343278]
[1726019342654,0.000818,57079.0,57066.0,0.009]
[1726019342655,0.445612,57079.0,57066.0,0.009]
[1726019342898,0.002,57069.0,57053.0,0.52003278]
[1726019343121,0.175236,57066.0,57053.0,0.42143278]
[1726019343339,0.0944,57065.0,57053.0,0.42143278]
[1726019344019,0.09418913,57065.0,57053.0,0.42143278]
[1726019344252,0.09418913,57065.0,57059.0,0.42143278]
[1726019344469,0.001,57067.0,57059.0,0.42143278]
[1726019344707,0.0784,57076.0,57066.0,0.42143278]
[1726019344933,0.0784,57076.0,57067.0,0.023]
[1726019345143,0.006,57069.0,57067.0,0.023]
[1726019345558,0.0784,57076.0,57067.0,0.023]
[1726019345779,0.0914,57076.0,57067.0,0.023]
[1726019345991,0.0934,57076.0,57067.0,0.023]
[1726019346231,0.062,57075.0,57066.0,0.001]
[1726019346434,0.06,57073.0,57066.0,0.001]
[1726019346670,0.525697,57067.0,57066.0,0.001]
[1726019346894,0.062,57062.0,57047.0,0.04514328]
[1726019347115,0.062,57062.0,57036.0,0.01172372]
[1726019347116,0.428919,57059.0,57037.0,0.0786]
[1726019347328,0.002,57058.0,57040.0,0.17594018]
[1726019347579,0.175263,57057.0,57040.0,0.17594018]
[1726019347797,0.17726,57058.0,57041.0,0.02561762]
[1726019348025,0.002,57058.0,57042.0,0.17594018]
[1726019348249,0.177261,57058.0,57042.0,0.17594018]
[1726019348663,0.002,57057.0,57042.0,0.17594018]
[1726019349116,0.003,57058.0,57042.0,0.17594018]
[1726019349331,0.003,57058.0,57043.0,0.12118298]
[1726019349538,0.003,57058.0,57044.0,0.17594018]
[1726019349758,0.0944,57060.0,57055.0,0.42143278]
[1726019349989,0.001,57057.0,57056.0,0.34108346]
[1726019350428,0.001,57057.0,57056.0,0.29894018]
[1726019351359,0.175249,57062.0,57056.0,0.1]
[1726019351582,0.001,57058.0,57050.0,0.1]
[1726019351787,0.001,57058.0,57051.0,0.19894018]
[1726019352001,0.0944,57067.0,57052.0,0.1]
[1726019352226,0.175239,57065.0,57053.0,0.023]
[1726019352432,0.001,57057.0,57056.0,0.008]
[1726019352911,0.001,57057.0,57053.0,0.023]
[1726019352912,0.271633,57067.0,57053.0,0.023]
[1726019353130,0.175238,57066.0,57053.0,0.023]
[1726019353337,0.175239,57065.0,57053.0,0.023]
[1726019353570,0.274635,57067.0,57053.0,0.023]
[1726019353797,0.0994,57067.0,57055.0,0.42143278]
[1726019354062,0.0994,57067.0,57056.0,0.29894018]
[1726019354319,0.0944,57067.0,57056.0,0.29894018]
[1726019354729,0.001,57057.0,57056.0,0.30694018]
[1726019354957,0.001,57057.0,57056.0,0.008]
[1726019355192,1.103715,57057.0,57056.0,0.008]
[1726019355423,0.755189,57057.0,57056.0,0.008]
[1726019355630,0.578926,57057.0,57037.0,0.42143278]
[1726019355838,0.002,57054.0,57041.0,0.04247048]
[1726019356046,0.175282,57051.0,57041.0,0.04247048]
[1726019356264,0.002,57053.0,57041.0,0.04247048]
[1726019356527,0.002,57051.0,57041.0,0.14247048]
[1726019356741,0.002,57049.0,57040.0,0.001636]
[1726019356975,0.350611,57044.0,57040.0,0.001636]
[1726019357196,0.03,57041.0,57040.0,0.001636]
[1726019357410,1.63590734,57041.0,57040.0,0.001636]
[1726019357861,1.63590734,57041.0,57040.0,0.002636]
[1726019358073,1.28090018,57041.0,57040.0,0.002636]
[1726019358280,1.63152418,57041.0,57040.0,0.001636]
[1726019358501,1.63852418,57041.0,57040.0,0.002636]
[1726019359381,1.28790018,57041.0,57040.0,0.002636]
[1726019359789,1.63852418,57041.0,57040.0,0.002636]
[1726019360023,1.28790018,57041.0,57040.0,0.002636]
[1726019361766,0.93727618,57041.0,57040.0,0.002636]
[1726019361896,0.007,57041.0,57040.0,0.002636]
[1726019362129,0.007,57041.0,57040.0,0.025636]
[1726019362331,0.007,57041.0,57040.0,0.002636]
[1726019363572,0.03,57046.0,57040.0,0.001636]
[1726019363768,0.03,57046.0,57040.0,0.002636]
[1726019363924,0.007,57041.0,57040.0,0.002636]
[1726019364363,0.03,57046.0,57040.0,0.002636]
[1726019364364,0.03,57046.0,57040.0,0.001636]
[1726019364778,0.03,57046.0,57040.0,0.005636]
[1726019364995,0.02,57042.0,57040.0,0.005636]
[1726019365204,0.022,57042.0,57040.0,0.001636]
[1726019365636,0.002,57041.0,57040.0,0.001636]
[1726019366390,1.45810136,57041.0,57040.0,0.001636]
[1726019366564,1.17588878,57028.0,57008.0,0.001646]
[1726019366708,2.05323696,57028.0,57008.0,0.001646]
[1726019366928,0.586131,57020.0,57008.0,0.001646]
[1726019367133,2.39296596,57020.0,57008.0,0.001646]
[1726019367358,2.04221196,57020.0,57008.0,0.001646]
[1726019367587,1.62077918,57020.0,57008.0,0.001646]
[1726019368480,1.98553318,57020.0,57019.0,0.002646]
[1726019368717,1.98553318,57020.0,57008.0,0.001646]
[1726019368718,1.289681,57018.0,57008.0,0.001646]
[1726019368925,1.91408718,57018.0,57008.0,0.001646]
[1726019370927,1.56332118,57018.0,57008.0,0.001646]
[1726019371164,1.56332118,57018.0,57017.0,0.0054193]
[1726019371165,1.22655518,57018.0,57017.0,0.0054193]
[1726019371840,1.21255518,57018.0,57017.0,0.0044193]
[1726019372080,1.56332118,57018.0,57017.0,0.0044193]
[1726019372290,1.57732118,57018.0,57017.0,0.0054193]
[1726019372509,1.22655518,57018.0,57017.0,0.0054193]
[1726019372983,1.57732118,57018.0,57017.0,0.0054193]
[1726019373643,1.92808718,57018.0,57017.0,0.0054193]
[1726019373845,1.56332118,57018.0,57017.0,0.0044193]
[1726019374057,1.57732118,57018.0,57017.0,0.0054193]
[1726019374280,0.87578918,57018.0,57017.0,0.0054193]
[1726019374508,0.1597,57018.0,57017.0,0.0060553]
[1726019374728,0.062,57018.0,57017.0,0.0060553]
[1726019374937,0.076,57018.0,57017.0,0.0070553]
[1726019375368,0.032,57018.0,57017.0,0.0060553]
[1726019375598,1.11924005,57018.0,57017.0,0.0060553]
[1726019375808,1.11924005,57018.0,57017.0,0.0070553]
[1726019375809,0.77808918,57018.0,57017.0,0.0070553]
[1726019376021,1.47962118,57018.0,57017.0,0.0070553]
[1726019376230,1.57732118,57018.0,57017.0,0.0070553]
[1726019376666,0.879007,57012.0,57008.0,0.001646]
[1726019376911,0.062,57012.0,57008.0,0.001646]
[1726019377152,0.41334118,57012.0,57008.0,0.001646]
[1726019377389,1.18694718,57012.0,57008.0,0.001646]
[1726019377608,1.18694718,57012.0,57003.0,0.0021867]
[1726019377609,0.528278,57004.0,57003.0,0.0021867]
[1726019377816,1.63420296,57004.0,57003.0,0.0021867]
[1726019378022,2.40790696,57004.0,57003.0,0.0021867]
[1726019378288,1.63562218,57004.0,57003.0,0.0021867]
[1726019378511,1.29009,56999.0,56998.0,0.001646]
[1726019378731,1.56373018,56999.0,56998.0,0.001646]
[1726019380130,1.91461318,56999.0,56998.0,0.001646]
[1726019380359,2.40804596,56999.0,56998.0,0.001646]
[1726019380583,2.41904596,56999.0,56998.0,0.002646]
[1726019380824,2.06816296,56999.0,56998.0,0.002646]
[1726019381052,2.05716296,56999.0,56998.0,0.001646]
[1726019381269,2.06816296,56999.0,56998.0,0.002646]
[1726019381704,1.64673018,56999.0,56998.0,0.002646]
[1726019381974,1.29584718,56999.0,56998.0,0.002646]
[1726019382184,1.64673018,56999.0,56998.0,0.002646]
[1726019382400,1.29584718,56999.0,56998.0,0.002646]
[1726019382627,1.64673018,56999.0,56998.0,0.002646]
[1726019383485,1.29584718,56999.0,56998.0,0.002646]
[1726019384382,1.29584718,56999.0,56981.0,8.906e-05]
[1726019384383,0.937222,56998.0,56981.0,8.906e-05]
[1726019384614,0.35864018,56999.0,56981.0,8.906e-05]
[1726019384615,0.588351,56996.0,56993.0,0.0031792]
[1726019384861,0.002,56996.0,56993.0,0.0031792]
[1726019385065,0.03,56996.0,56993.0,0.0031792]
[1726019385274,0.06,56997.0,56994.0,8.906e-05]
[1726019385522,0.011,56999.0,56994.0,8.906e-05]
[1726019385737,0.011,56999.0,56997.0,0.42143278]
[1726019386015,0.011,56999.0,56997.0,0.46406748]
[1726019386432,0.011,56999.0,56997.0,0.42143278]
[1726019386876,0.423251,57021.0,56998.0,0.0889]
[1726019386877,0.03,57008.0,56998.0,0.0889]
[1726019387307,0.002,57003.0,56995.0,0.002646]
[1726019387756,0.175427,57004.0,56997.0,0.001638]
[1726019387969,0.352841,57006.0,56997.0,0.007638]
[1726019387970,0.00078892,56999.0,56997.0,0.007638]
[1726019388374,0.002,57006.0,56997.0,0.001638]
[1726019388859,0.001,57003.0,56997.0,0.001638]
[1726019389999,0.002,57003.0,56997.0,0.001638]
[1726019390493,0.001,57006.0,56997.0,0.009638]
[1726019390721,0.002,57006.0,56997.0,0.001638]
[1726019391145,0.001,57003.0,56998.0,0.19516749]
[1726019391367,0.001,57003.0,56998.0,0.17594018]
[1726019391598,0.03,57008.0,56998.0,0.17594018]
[1726019391804,0.175434,57002.0,56997.0,0.010638]
[1726019392012,0.001,57006.0,56997.0,0.010638]
[1726019392266,0.002,56999.0,56997.0,0.010638]
[1726019392489,0.002,57001.0,56997.0,0.010638]
[1726019392701,0.06,57005.0,56997.0,0.010638]
[1726019393153,0.032,57009.0,56997.0,0.17757818]
[1726019393394,0.001,57003.0,56998.0,0.02593132]
[1726019393837,0.032,57005.0,56997.0,0.17757818]
[1726019394036,0.002,57002.0,56997.0,0.001638]
[1726019394268,0.002,57002.0,56997.0,0.009638]
[1726019394664,0.002,57002.0,56997.0,0.001638]
[1726019394981,0.002,57002.0,56998.0,0.007]
[1726019395197,0.001,57003.0,56998.0,0.007]
[1726019395397,0.002,57002.0,56998.0,0.007]
[1726019395846,0.002,56999.0,56998.0,0.007]
[1726019396026,0.001,57003.0,56998.0,0.007]
[1726019396258,0.410849,57005.0,56997.0,0.001638]
[1726019396462,0.002,56999.0,56997.0,0.001638]
[1726019396667,0.177444,56998.0,56997.0,0.001638]
[1726019396891,0.002,56998.0,56997.0,0.001638]
[1726019398002,0.002,56999.0,56997.0,0.001638]
[1726019398922,0.06,57004.0,56997.0,0.001638]
[1726019399153,0.000819,57003.0,56998.0,0.17594018]
[1726019399616,0.000819,57003.0,56997.0,0.001638]
[1726019400290,0.002,57002.0,56997.0,0.001638]
[1726019400508,0.003,56998.0,56997.0,0.001638]
[1726019400743,0.003,56998.0,56997.0,0.59901096]
[1726019400955,0.003,56998.0,56997.0,0.69901096]
[1726019401196,0.000819,57003.0,56997.0,0.69901096]
[1726019401423,0.001819,57003.0,56997.0,0.70601096]
[1726019401865,0.000819,57003.0,57002.0,0.42143278]
[1726019402088,0.000819,57003.0,57002.0,0.69737296]
[1726019403001,0.000819,57003.0,57002.0,0.88607296]
[1726019404160,0.000819,57019.0,57008.0,0.03]
[1726019404392,0.000819,57019.0,57018.0,0.25462996]
[1726019404597,0.000819,57019.0,57018.0,0.57903314]
[1726019405071,0.000819,57019.0,57018.0,0.49010318]
[1726019405314,0.000819,57019.0,57018.0,0.35274018]
[1726019405526,0.000819,57019.0,57018.0,0.37574018]
[1726019406229,0.000819,57019.0,57018.0,0.1768]
[1726019406463,0.000819,57019.0,57018.0,0.0768]
[1726019406705,0.000819,57019.0,57010.0,0.42204539]
[1726019406907,0.000819,57019.0,57009.0,0.0768]
[1726019407143,0.000819,57019.0,57002.0,0.0889]
[1726019407144,0.177391,57016.0,57008.0,0.008]
[1726019407353,0.175409,57010.0,57008.0,0.008]
[1726019407603,0.17541,57009.0,57008.0,0.008]
[1726019407824,0.002,57006.0,56997.0,0.001638]
[1726019408039,0.0956,57008.0,56997.0,0.001638]
[1726019408732,0.175419,57007.0,56997.0,0.001638]
[1726019409190,0.175444,56998.0,56997.0,0.001638]
[1726019409395,0.06,57000.0,56997.0,0.001638]
[1726019409626,0.526333,56998.0,56997.0,0.001638]
[1726019409860,0.556333,56998.0,56997.0,0.002638]
[1726019410133,0.03,56998.0,56997.0,0.002638]
[1726019410395,0.03,56998.0,56997.0,0.001638]
[1726019411095,0.410889,56998.0,56997.0,0.001638]
[1726019411400,1.70530757,56998.0,56997.0,0.001638]
[1726019411660,1.70530757,56998.0,56993.0,0.0031792]
[1726019411661,0.939252,56996.0,56993.0,0.0031792]
[1726019411902,0.76429118,56996.0,56993.0,0.0031792]
[1726019412131,0.002,56996.0,56993.0,0.0031792]
[1726019412662,0.06,57003.0,56993.0,0.0031792]
[1726019412858,0.000819,57007.0,56993.0,0.0031792]
[1726019413092,0.03,57000.0,56993.0,0.0031792]
[1726019413340,0.175444,56998.0,56997.0,0.001]
[1726019413565,0.588333,56998.0,56997.0,0.001]
[1726019413825,0.588333,56998.0,56993.0,0.0031792]
[1726019413826,0.23745,56996.0,56993.0,0.0031792]
[1726019414032,0.23745,56996.0,56995.0,0.002646]
[1726019414033,1.19517896,56996.0,56995.0,0.002646]
[1726019414251,1.54607996,56996.0,56995.0,0.002646]
[1726019414472,1.54607996,56996.0,56995.0,0.001646]
[1726019415379,0.23545,56996.0,56995.0,0.001646]
[1726019415616,0.939252,56996.0,56995.0,0.001646]
[1726019416057,1.46609318,56996.0,56995.0,0.001646]
[1726019416274,1.11519218,56996.0,56995.0,0.001646]
[1726019416512,1.12319218,56996.0,56995.0,0.002646]
[1726019416777,0.77229118,56996.0,56995.0,0.002646]
[1726019416998,0.008,56996.0,56995.0,0.002646]
[1726019417221,0.038,56996.0,56995.0,0.002646]
[1726019417869,0.008,56996.0,56995.0,0.002646]
[1726019419378,0.000819,57007.0,56996.0,0.0897]
[1726019419567,0.000819,57007.0,57006.0,0.42204539]
[1726019419841,0.000819,57007.0,57006.0,0.59798557]
[1726019420059,0.000819,57007.0,57006.0,0.88388557]
[1726019421234,0.001819,57007.0,57006.0,0.89088557]
[1726019421470,0.001819,57007.0,57006.0,0.98297413]
[1726019422400,0.000819,57007.0,57006.0,0.97597413]
[1726019423121,0.001819,57007.0,57006.0,0.98297413]
[1726019423358,0.001819,57007.0,57006.0,0.86788557]
[1726019424038,0.001819,57007.0,57006.0,0.89088557]
[1726019427532,0.001819,57007.0,57006.0,0.77818557]
[1726019427768,0.001819,57007.0,57006.0,0.18294018]
[1726019428004,0.001819,57007.0,57006.0,0.007]
[1726019429155,0.000819,57007.0,57006.0,0.17594018]
[1726019429376,0.000819,57007.0,57006.0,0.21902467]
[1726019429588,0.000819,57007.0,57006.0,0.31902467]
[1726019430035,0.000819,57007.0,57006.0,0.1]
[1726019430502,0.000819,57007.0,57006.0,0.29894018]
[1726019430764,0.000819,57007.0,57006.0,0.39144018]
[1726019431224,0.000819,57019.0,57011.0,0.03]
[1726019431453,0.000819,57019.0,57014.0,0.25490469]
[1726019431713,0.000819,57019.0,57015.0,0.35657467]
[1726019431938,0.000819,57019.0,57015.0,0.3744691]
[1726019432201,0.000819,57019.0,57018.0,0.42195243]
[1726019432433,0.011819,57019.0,57018.0,0.59789261]
[1726019432664,0.011819,57019.0,57018.0,0.82335089]
[1726019432898,0.000819,57019.0,57018.0,0.82335089]
[1726019433379,0.003819,57019.0,57018.0,0.82335089]
[1726019433619,0.003819,57019.0,57018.0,0.89835089]
[1726019433851,0.000819,57019.0,57018.0,0.89835089]
[1726019434565,0.000819,57019.0,57018.0,0.92835089]
[1726019434824,0.000819,57019.0,57018.0,1.02085089]
[1726019435307,1e-06,57019.0,57018.0,1.02685089]
[1726019435763,0.52782518,57040.0,57032.0,0.42195243]
[1726019436001,0.52782518,57040.0,57032.0,0.76308785]
[1726019436233,0.52782518,57040.0,57032.0,0.78283964]
[1726019436470,0.002,57040.0,57032.0,0.78283964]
[1726019436700,0.002,57040.0,57032.0,0.75983964]
[1726019436931,0.002,57042.0,57032.0,0.75983964]
[1726019437186,0.002,57042.0,57032.0,0.78283964]
[1726019437414,0.002,57036.0,57032.0,0.01645983]
[1726019437636,0.002,57036.0,57026.0,0.52195243]
[1726019437870,0.002,57040.0,57032.0,0.01645983]
[1726019438102,0.002,57040.0,57027.0,0.17594018]
[1726019438325,0.002,57040.0,57032.0,0.01645983]
[1726019438551,0.002,57040.0,57032.0,0.003]
[1726019439036,0.0919449,57033.0,57032.0,0.01645983]
[1726019439278,0.0919449,57033.0,57018.0,0.12136351]
[1726019439279,0.002,57029.0,57018.0,0.12136351]
[1726019439514,0.002,57029.0,57027.0,0.003]
[1726019439792,0.03,57032.0,57027.0,0.003]
[1726019440014,0.0919449,57033.0,57020.0,0.52195243]
[1726019440237,0.0939449,57033.0,57021.0,0.25322944]
[1726019440471,0.0022449,57033.0,57026.0,0.42195243]
[1726019440708,0.0002449,57033.0,57032.0,0.42495243]
[1726019441387,0.0002449,57033.0,57032.0,0.64338785]
[1726019441841,0.0002449,57033.0,57032.0,0.59789261]
[1726019442072,0.0002449,57033.0,57032.0,0.17594018]
[1726019442842,0.0002449,57033.0,57032.0,0.003]
[1726019444510,0.0022449,57033.0,57032.0,0.003]
[1726019444926,0.350642,57039.0,57027.0,0.1]
[1726019444927,0.002,57040.0,57027.0,0.1]
[1726019445144,0.0024223,57038.0,57032.0,0.59789261]
[1726019445375,0.0024223,57038.0,57033.0,0.1]
[1726019445987,0.0024223,57038.0,57034.0,0.01625753]
[1726019446201,0.0024223,57038.0,57033.0,0.1]
[1726019446458,0.0024223,57038.0,57035.0,0.01625753]
[1726019446677,0.0024223,57038.0,57032.0,0.42195243]
[1726019446898,0.0124223,57038.0,57036.0,0.01625753]
[1726019447123,0.0144223,57038.0,57033.0,0.101]
[1726019447387,0.0124223,57038.0,57037.0,0.01625753]
[1726019447590,0.0124223,57038.0,57033.0,0.101]
[1726019447591,0.0124223,57038.0,57034.0,0.01625753]
[1726019447802,0.0124223,57038.0,57033.0,0.101]
[1726019448015,0.002,57036.0,57033.0,0.001]
[1726019448238,0.002,57034.0,57033.0,0.001]
[1726019448460,0.175334,57034.0,57033.0,0.001]
[1726019448712,0.002,57030.0,57021.0,0.1]
[1726019448919,0.002,57030.0,57022.0,0.20113085]
[1726019449149,0.002,57032.0,57023.0,0.1]
[1726019449373,0.002,57033.0,57023.0,0.27594018]
[1726019450069,0.002,57033.0,57032.0,0.2]
[1726019450759,0.0968,57035.0,57032.0,0.2]
[1726019450976,0.002,57033.0,57032.0,0.2]
[1726019451674,0.002,57033.0,57032.0,0.21621885]
[1726019451889,0.0024223,57038.0,57032.0,0.63817128]
[1726019452110,0.005,57033.0,57032.0,0.65979317]
[1726019452325,0.005,57033.0,57032.0,0.59233748]
[1726019452552,0.005,57033.0,57032.0,0.61533748]
[1726019452763,0.0024223,57038.0,57032.0,0.69063748]
[1726019453015,0.0024223,57038.0,57037.0,0.25449674]
[1726019453236,0.0024223,57038.0,57037.0,0.55343692]
[1726019453237,0.0124223,57038.0,57037.0,0.55343692]
[1726019453665,0.0124223,57038.0,57037.0,0.11625089]
[1726019453666,0.0024223,57038.0,57037.0,0.11625089]
[1726019453950,0.0024223,57038.0,57037.0,0.13571635]
[1726019454408,0.0024223,57038.0,57037.0,0.01625089]
[1726019454623,0.0024223,57038.0,57033.0,0.17840375]
[1726019454848,0.0024223,57038.0,57037.0,0.27074763]
[1726019455062,0.0024223,57038.0,57037.0,0.35449674]
[1726019455277,0.0024223,57038.0,57037.0,0.37074763]
[1726019455490,0.0024223,57038.0,57037.0,0.43325679]
[1726019455952,0.0034223,57038.0,57037.0,0.60919697]
[1726019456170,0.0034223,57038.0,57037.0,0.63219697]
[1726019456387,0.0024818,57049.0,57038.0,0.0965777]
[1726019456388,0.002,57046.0,57038.0,0.0965777]
[1726019456608,0.002,57046.0,57039.0,0.24831765]
[1726019456835,0.002,57046.0,57040.0,0.1]
[1726019457047,0.002,57047.0,57040.0,0.29219107]
[1726019457257,0.002,57047.0,57041.0,0.0740643]
[1726019457467,0.002,57047.0,57040.0,0.27594018]
[1726019457702,0.002,57047.0,57042.0,0.01615696]
[1726019457916,0.002,57047.0,57040.0,0.27594018]
[1726019458129,0.002,57044.0,57043.0,0.01615696]
[1726019458345,0.002,57047.0,57039.0,0.1]
[1726019458558,0.0024818,57049.0,57043.0,0.01615696]
[1726019459026,0.002,57047.0,57043.0,0.01615696]
[1726019459472,0.002,57047.0,57043.0,0.19209714]
[1726019459956,0.0044818,57049.0,57044.0,0.17594018]
[1726019460169,0.0044818,57049.0,57048.0,0.25449674]
[1726019460441,0.0044818,57049.0,57048.0,0.59342061]
[1726019460659,0.0968,57048.0,57032.0,0.2]
[1726019460895,0.0968,57048.0,57038.0,0.27251788]
[1726019460896,0.002,57043.0,57038.0,0.27251788]
[1726019461336,0.002,57043.0,57039.0,0.1]
[1726019461591,0.002,57047.0,57039.0,0.1]
[1726019461815,0.002,57047.0,57039.0,0.35449674]
[1726019462044,0.0012088,57047.0,57040.0,0.06270146]
[1726019462263,0.0978,57048.0,57040.0,0.06270146]
[1726019462486,0.0980088,57048.0,57040.0,0.06270146]
[1726019462711,0.0980088,57048.0,57039.0,0.35449674]